[Event "9e Open International de Porticcio"]
[Site "Porticcio, France"]
[Date "2024.06.29"]
[Round "1.7"]
[White "Druska, Juraj"]
[Black "Markuszewski, Maksymilian"]
[Result "1-0"]
[TimeControl "1h30+30s/move"]
[WhiteElo "2466"]
[BlackElo "2114"]

1. e4 {[%clk 01:30:55]} {[%emt 00:00:04]} c5 {[%clk 01:30:30]} {[%emt
00:00:31]} 2. Nf3 {[%clk 01:31:12]} {[%emt 00:00:13]} d6 {[%clk 01:30:58]}
{[%emt 00:00:03]} 3. d4 {[%clk 01:31:28]} {[%emt 00:00:14]} cxd4 {[%clk
01:31:24]} {[%emt 00:00:04]} 4. Nxd4 {[%clk 01:31:52]} {[%emt 00:00:05]} Nf6
{[%clk 01:31:52]} {[%emt 00:00:03]} 5. Nc3 {[%clk 01:32:11]} {[%emt 00:00:09]}
a6 {[%clk 01:32:20]} {[%emt 00:00:04]} 6. Be2 {[%clk 01:32:27]} {[%emt
00:00:13]} e5 {[%clk 01:32:44]} {[%emt 00:00:06]} 7. Nf3 {[%clk 01:32:47]}
{[%emt 00:00:09]} Be7 {[%clk 01:32:34]} {[%emt 00:00:42]} 8. Bg5 {[%clk
01:32:56]} {[%emt 00:00:20]} Be6 {[%clk 01:32:15]} {[%emt 00:00:50]} 9. Bxf6
{[%clk 01:32:57]} {[%emt 00:00:28]} Bxf6 {[%clk 01:31:39]} {[%emt 00:01:07]} 10.
O-O {[%clk 01:33:08]} {[%emt 00:00:17]} O-O {[%clk 01:30:05]} {[%emt 00:02:05]}
11. Qd2 {[%clk 01:33:24]} {[%emt 00:00:13]} Be7 {[%clk 01:19:59]} {[%emt
00:10:36]} 12. Nd5 {[%clk 01:33:23]} {[%emt 00:00:31]} Bxd5 {[%emt 00:06:10]}
13. Qxd5 {[%clk 01:33:30]} {[%emt 00:00:01]} Qc7 {[%clk 01:13:54]} {[%emt
00:01:18]} 14. Bc4 {[%clk 01:26:47]} {[%emt 00:07:12]} Nd7 {[%clk 01:12:45]}
{[%emt 00:01:39]} 15. Bb3 {[%clk 01:26:34]} {[%emt 00:00:42]} Rac8 {[%clk
01:11:55]} {[%emt 00:01:20]} 16. c3 {[%clk 01:20:34]} {[%emt 00:06:30]} Qc6
{[%clk 00:51:47]} {[%emt 00:20:39]} 17. Rfe1 {[%clk 01:09:15]} {[%emt
00:11:48]} Qxd5 {[%clk 00:49:51]} {[%emt 00:02:27]} 18. Bxd5 {[%clk 01:09:28]}
{[%emt 00:00:17]} Rc7 {[%clk 00:49:28]} {[%emt 00:00:53]} 19. Rad1 {[%clk
01:03:08]} {[%emt 00:06:50]} b5 {[%clk 00:46:29]} {[%emt 00:03:29]} 20. Re2
{[%clk 00:58:43]} {[%emt 00:04:54]} g6 {[%clk 00:41:12]} {[%emt 00:05:47]} 21.
Ne1 {[%clk 00:57:17]} {[%emt 00:01:55]} Kg7 {[%clk 00:39:23]} {[%emt 00:02:20]}
22. Nc2 {[%clk 00:56:21]} {[%emt 00:01:25]} a5 {[%clk 00:39:10]} {[%emt
00:00:45]} 23. Bb3 {[%clk 00:40:34]} {[%emt 00:16:17]} Rb8 {[%clk 00:34:40]}
{[%emt 00:05:00]} 24. Ne3 {[%clk 00:36:47]} {[%emt 00:04:15]} Nb6 {[%clk
00:33:41]} {[%emt 00:01:31]} 25. a3 {[%clk 00:36:09]} {[%emt 00:01:09]} Bf8
{[%clk 00:31:08]} {[%emt 00:03:02]} 26. g3 {[%clk 00:31:31]} {[%emt 00:05:07]}
Kf6 {[%clk 00:29:17]} {[%emt 00:02:21]} 27. Rd3 {[%clk 00:26:50]} {[%emt
00:05:11]} Ke7 {[%clk 00:24:57]} {[%emt 00:04:50]} 28. f4 {[%clk 00:23:14]}
{[%emt 00:04:07]} f6 {[%clk 00:24:44]} 29. Kg2 {[%clk 00:23:12]} {[%emt
00:04:25]} Rc6 {[%clk 00:16:56]} 30. Kf3 {[%clk 00:22:30]} {[%emt 00:06:20]}
Bg7 {[%clk 00:15:31]} 31. h4 {[%clk 00:15:50]} {[%emt 00:09:05]} Rf8 {[%clk
00:15:08]} 32. h5 {[%clk 00:14:50]} {[%emt 00:02:23]} f5 {[%clk 00:13:53]}
{[%emt 00:01:45]} 33. hxg6 {[%clk 00:14:25]} {[%emt 00:00:56]} hxg6 {[%clk
00:12:01]} {[%emt 00:02:21]} 34. Rh2 {[%clk 00:14:53]} {[%emt 00:00:02]} fxe4+
{[%clk 00:11:06]} {[%emt 00:01:25]} 35. Kxe4 {[%clk 00:15:16]} {[%emt
00:00:08]} Rh8 {[%clk 00:11:23]} {[%emt 00:00:13]} 36. Rxh8 {[%clk 00:14:44]}
{[%emt 00:01:02]} Bxh8 {[%clk 00:11:48]} {[%emt 00:00:05]} 37. Rd2 {[%clk
00:14:27]} {[%emt 00:00:47]} exf4 {[%clk 00:10:12]} {[%emt 00:02:06]} 38. gxf4
{[%clk 00:14:51]} {[%emt 00:00:06]} Nd7 {[%clk 00:04:02]} {[%emt 00:06:40]} 39.
Kf3 {[%clk 00:14:56]} {[%emt 00:00:25]} Bg7 {[%clk 00:01:43]} {[%emt 00:02:50]}
40. Rg2 {[%clk 00:13:57]} {[%emt 00:01:28]} Nf8 {[%clk 00:01:06]} {[%emt
00:01:08]} 41. f5 {[%clk 00:13:47]} {[%emt 00:00:41]} Kf6 {[%clk 00:00:34]}
{[%emt 00:01:02]} 42. Nd5+ {[%clk 00:13:39]} {[%emt 00:00:38]} Ke5 {[%clk
00:00:57]} {[%emt 00:00:06]} 43. Re2+ {[%clk 00:14:02]} {[%emt 00:00:07]} Kxd5
{[%emt 00:00:11]} 44. Ke4+ 1-0

[Event "9e Open International de Porticcio"]
[Site "Porticcio, France"]
[Date "2024.06.29"]
[Round "1.8"]
[White "Pattnayak Nilsu"]
[Black "Batsiashvili, Nino"]
[Result "0-1"]
[TimeControl "1h30+30s/move"]
[WhiteElo "2113"]
[BlackElo "2450"]

1. e4 {[%clk 01:30:33]} {[%emt 00:00:26]} e5 {[%clk 01:27:13]} {[%emt
00:03:47]} 2. Nf3 {[%clk 01:30:55]} {[%emt 00:00:07]} Nc6 {[%clk 01:27:34]}
{[%emt 00:00:09]} 3. Bb5 {[%clk 01:31:12]} {[%emt 00:00:13]} a6 {[%clk
01:27:55]} {[%emt 00:00:09]} 4. Ba4 {[%clk 01:31:31]} {[%emt 00:00:12]} Nf6
{[%clk 01:27:45]} {[%emt 00:00:40]} 5. O-O {[%clk 01:31:55]} {[%emt 00:00:06]}
d6 {[%clk 01:26:54]} {[%emt 00:01:20]} 6. Re1 {[%clk 01:30:48]} {[%emt
00:01:38]} Bd7 {[%clk 01:26:53]} {[%emt 00:00:31]} 7. c3 {[%clk 01:30:19]}
{[%emt 00:00:58]} g6 {[%clk 01:27:06]} {[%emt 00:00:17]} 8. d4 {[%clk
01:27:32]} {[%emt 00:03:17]} Bg7 {[%clk 01:27:09]} {[%emt 00:00:28]} 9. Nbd2
{[%clk 01:22:28]} {[%emt 00:05:34]} Nh5 {[%clk 01:22:16]} {[%emt 00:05:22]} 10.
Nf1 {[%clk 01:16:56]} {[%emt 00:06:03]} O-O {[%clk 01:22:06]} {[%emt 00:00:40]}
11. Bg5 {[%clk 01:13:33]} {[%emt 00:03:53]} Qe8 {[%clk 01:19:16]} {[%emt
00:03:20]} 12. d5 {[%clk 01:04:24]} {[%emt 00:09:39]} Nb8 {[%clk 01:18:34]}
{[%emt 00:01:13]} 13. Bxd7 {[%clk 00:58:32]} {[%emt 00:06:22]} Nxd7 {[%clk
01:18:58]} {[%emt 00:00:06]} 14. Ng3 {[%clk 00:58:49]} {[%emt 00:00:13]} Nxg3
{[%clk 01:13:22]} {[%emt 00:06:07]} 15. hxg3 {[%clk 00:59:08]} {[%emt
00:00:12]} h6 {[%clk 01:13:47]} {[%emt 00:00:05]} 16. Bd2 {[%clk 00:55:46]}
{[%emt 00:03:51]} a5 {[%clk 01:07:13]} {[%emt 00:07:05]} 17. a4 {[%clk
00:50:38]} {[%emt 00:05:38]} Nc5 {[%clk 01:06:31]} {[%emt 00:01:12]} 18. b4
{[%clk 00:44:59]} {[%emt 00:06:09]} axb4 {[%clk 01:03:01]} {[%emt 00:04:00]} 19.
cxb4 {[%clk 00:45:23]} {[%emt 00:00:06]} Nxa4 {[%clk 01:02:42]} {[%emt
00:00:49]} 20. Qc1 {[%clk 00:45:31]} {[%emt 00:00:22]} c5 {[%clk 00:58:09]}
{[%emt 00:05:03]} 21. dxc6 {[%clk 00:43:17]} {[%emt 00:02:44]} Qxc6 {[%clk
00:58:21]} {[%emt 00:00:18]} 22. Bxh6 {[%clk 00:42:52]} {[%emt 00:00:56]} Qxc1
{[%clk 00:54:13]} {[%emt 00:04:38]} 23. Bxc1 {[%clk 00:43:10]} {[%emt
00:00:12]} d5 {[%clk 00:52:14]} {[%emt 00:02:29]} 24. Ra3 {[%clk 00:33:22]}
{[%emt 00:10:18]} d4 {[%clk 00:51:01]} {[%emt 00:01:42]} 25. Bd2 {[%clk
00:29:47]} {[%emt 00:04:06]} Rfc8 {[%clk 00:46:24]} {[%emt 00:05:08]} 26. Rea1
{[%clk 00:25:08]} {[%emt 00:05:09]} b5 {[%clk 00:46:39]} {[%emt 00:00:15]} 27.
Ne1 {[%clk 00:25:34]} {[%emt 00:00:04]} f5 {[%clk 00:45:51]} {[%emt 00:01:18]}
28. f3 {[%clk 00:23:05]} {[%emt 00:02:58]} Rc4 {[%clk 00:41:55]} {[%emt
00:04:26]} 29. Nd3 {[%clk 00:20:57]} {[%emt 00:02:39]} fxe4 {[%clk 00:40:57]}
{[%emt 00:01:28]} 30. fxe4 {[%clk 00:21:17]} {[%emt 00:00:10]} Rac8 {[%clk
00:41:23]} {[%emt 00:00:04]} 31. Rf1 {[%clk 00:17:43]} {[%emt 00:04:04]} Rc2
{[%clk 00:41:00]} {[%emt 00:00:53]} 32. Rc1 {[%clk 00:08:39]} {[%emt 00:09:34]}
Rxc1+ {[%clk 00:38:20]} {[%emt 00:03:11]} 33. Nxc1 {[%clk 00:09:00]} {[%emt
00:00:09]} Bf8 {[%clk 00:36:39]} {[%emt 00:02:11]} 34. Ra1 {[%clk 00:03:17]}
{[%emt 00:06:13]} Nc3 {[%clk 00:34:01]} {[%emt 00:03:08]} 35. Bxc3 {[%clk
00:03:28]} {[%emt 00:00:19]} dxc3 {[%clk 00:34:21]} {[%emt 00:00:11]} 36. Nd3
{[%clk 00:00:54]} {[%emt 00:03:03]} c2 {[%clk 00:34:31]} {[%emt 00:00:19]} 37.
Rc1 {[%clk 00:00:34]} {[%emt 00:00:51]} Bh6 {[%clk 00:34:55]} {[%emt 00:00:06]}
38. Ra1 {[%clk 00:00:58]} {[%emt 00:00:06]} c1=Q+ {[%clk 00:35:03]} {[%emt
00:00:23]} 39. Nxc1 {[%clk 00:01:07]} {[%emt 00:00:20]} Rxc1+ {[%clk 00:35:27]}
{[%emt 00:00:06]} 0-1

[Event "9e Open International de Porticcio"]
[Site "Porticcio, France"]
[Date "2024.06.29"]
[Round "1.10"]
[White "Lemoine, Jean-Pierre"]
[Black "Bertuli, Roger"]
[Result "0-1"]
[TimeControl "1h30+30s/move"]
[WhiteElo "1669"]
[BlackElo "1940"]

1. d4 {[%clk 01:30:47]} {[%emt 00:00:12]} d5 {[%clk 01:30:54]} {[%emt
00:00:06]} 2. Nf3 {[%clk 01:31:02]} {[%emt 00:00:16]} Nf6 {[%clk 01:31:10]}
{[%emt 00:00:14]} 3. Bf4 {[%clk 01:31:13]} {[%emt 00:00:18]} Bf5 {[%clk
01:30:47]} {[%emt 00:00:52]} 4. e3 {[%clk 01:28:12]} {[%emt 00:03:33]} e6
{[%clk 01:30:45]} {[%emt 00:00:31]} 5. Bd3 {[%clk 01:22:04]} {[%emt 00:06:39]}
Be7 {[%clk 01:29:01]} {[%emt 00:02:14]} 6. h3 {[%clk 01:07:05]} {[%emt
00:15:29]} O-O {[%clk 01:24:39]} {[%emt 00:04:52]} 7. Bxf5 {[%clk 01:00:59]}
{[%emt 00:06:36]} exf5 {[%clk 01:24:59]} {[%emt 00:00:10]} 8. Nbd2 {[%clk
01:01:14]} {[%emt 00:00:15]} Nbd7 {[%clk 01:23:07]} {[%emt 00:02:21]} 9. O-O
{[%clk 01:00:16]} {[%emt 00:01:28]} Ne4 {[%clk 01:23:03]} {[%emt 00:00:33]} 10.
Ne1 {[%clk 00:49:34]} {[%emt 00:11:12]} c5 {[%clk 01:16:48]} {[%emt 00:06:45]}
11. c3 {[%clk 00:45:49]} {[%emt 00:04:16]} Nb6 {[%clk 01:13:07]} {[%emt
00:04:11]} 12. f3 {[%clk 00:39:08]} {[%emt 00:07:11]} Nxd2 {[%clk 01:11:44]}
{[%emt 00:01:52]} 13. Qxd2 {[%clk 00:39:25]} {[%emt 00:00:13]} Nc4 {[%clk
01:11:14]} {[%emt 00:01:00]} 14. Qc2 {[%clk 00:39:36]} {[%emt 00:00:20]} g5
{[%clk 01:10:38]} {[%emt 00:01:06]} 15. b3 {[%clk 00:37:41]} {[%emt 00:02:26]}
Na3 {[%clk 01:09:03]} {[%emt 00:02:04]} 16. Qb2 {[%clk 00:34:15]} {[%emt
00:03:56]} gxf4 {[%clk 01:09:06]} {[%emt 00:00:27]} 17. Qxa3 {[%clk 00:34:31]}
{[%emt 00:00:14]} cxd4 {[%clk 01:09:13]} {[%emt 00:00:23]} 18. Qc1 {[%clk
00:33:08]} {[%emt 00:01:54]} dxe3 {[%clk 01:07:46]} {[%emt 00:01:56]} 19. Nd3
{[%clk 00:32:44]} {[%emt 00:00:54]} Qc7 {[%clk 01:07:29]} {[%emt 00:00:46]} 20.
Qe1 {[%clk 00:31:01]} {[%emt 00:02:13]} Bf6 {[%clk 01:03:44]} {[%emt 00:04:16]}
21. Rc1 {[%clk 00:30:54]} {[%emt 00:00:37]} Rfe8 {[%clk 01:01:57]} {[%emt
00:02:17]} 22. Qe2 {[%clk 00:21:39]} {[%emt 00:09:45]} Bh4 {[%clk 00:57:25]}
{[%emt 00:05:01]} 23. Nb4 {[%clk 00:19:40]} {[%emt 00:02:30]} Rad8 {[%clk
00:55:17]} {[%emt 00:02:37]} 24. Rfd1 {[%clk 00:19:17]} {[%emt 00:00:54]} Re5
{[%clk 00:51:22]} {[%emt 00:04:25]} 25. Nd3 {[%clk 00:18:39]} {[%emt 00:01:09]}
Re6 {[%clk 00:51:25]} {[%emt 00:00:27]} 26. Nb4 {[%clk 00:18:24]} {[%emt
00:00:45]} Red6 {[%clk 00:50:25]} {[%emt 00:01:29]} 27. Rd4 {[%clk 00:12:21]}
{[%emt 00:06:33]} Bg3 {[%clk 00:48:10]} {[%emt 00:02:45]} 28. Rdd1 {[%clk
00:05:25]} {[%emt 00:07:27]} a5 {[%clk 00:48:11]} {[%emt 00:00:28]} 29. Nd3
{[%clk 00:05:21]} {[%emt 00:00:34]} Rc6 {[%clk 00:47:54]} {[%emt 00:00:47]} 30.
Qc2 {[%clk 00:04:52]} {[%emt 00:01:00]} Rc8 {[%clk 00:45:44]} {[%emt 00:02:40]}
31. Qb1 {[%clk 00:02:18]} {[%emt 00:03:05]} Rxc3 {[%clk 00:44:20]} {[%emt
00:01:53]} 32. Rxc3 {[%clk 00:02:28]} {[%emt 00:00:20]} Qxc3 {[%emt 00:00:05]}
33. Rc1 {[%emt 00:00:15]} Qxc1+ {[%clk 00:41:47]} {[%emt 00:02:43]} 34. Nxc1
{[%clk 00:02:50]} {[%emt 00:00:08]} Rxc1+ {[%clk 00:41:17]} {[%emt 00:00:59]}
35. Qxc1 {[%clk 00:02:50]} {[%emt 00:00:31]} e2 {[%clk 00:41:35]} {[%emt
00:00:12]} 36. Qc8+ {[%clk 00:01:50]} {[%emt 00:01:31]} Kg7 {[%clk 00:42:01]}
{[%emt 00:00:02]} 37. Qc3+ {[%clk 00:01:57]} {[%emt 00:00:24]} Kg6 {[%clk
00:41:08]} {[%emt 00:01:23]} 38. Qxa5 {[%clk 00:02:05]} {[%emt 00:00:23]} e1=Q+
{[%clk 00:40:53]} {[%emt 00:00:44]} 39. Qxe1 {[%clk 00:02:26]} {[%emt
00:00:10]} Bxe1 {[%emt 00:00:03]} 40. Kf1 {[%emt 00:00:07]} Bb4 {[%clk
00:39:59]} {[%emt 00:01:12]} 41. Ke2 {[%clk 00:02:35]} {[%emt 00:00:23]} Kf6
{[%clk 00:40:12]} {[%emt 00:00:16]} 42. Kd3 {[%clk 00:02:44]} {[%emt 00:00:22]}
Ke5 {[%clk 00:40:03]} {[%emt 00:00:39]} 43. h4 {[%clk 00:02:24]} {[%emt
00:00:50]} h5 {[%clk 00:40:05]} {[%emt 00:00:27]} 44. Kc2 {[%clk 00:01:29]}
{[%emt 00:01:25]} Kd4 {[%clk 00:40:16]} {[%emt 00:00:19]} 45. Kb2 {[%clk
00:00:41]} {[%emt 00:01:19]} Ke3 {[%clk 00:40:37]} {[%emt 00:00:09]} 46. a3
{[%clk 00:00:58]} {[%emt 00:00:14]} Be1 {[%clk 00:39:57]} {[%emt 00:01:09]} 47.
a4 {[%clk 00:01:00]} {[%emt 00:00:28]} Bb4 {[%clk 00:40:20]} {[%emt 00:00:07]}
48. Kc2 {[%clk 00:01:12]} {[%emt 00:00:19]} d4 {[%clk 00:40:47]} {[%emt
00:00:02]} 0-1

[Event "9e Open International de Porticcio"]
[Site "Porticcio, France"]
[Date "2024.06.30"]
[Round "2.1"]
[White "Roebers, Eline"]
[Black "Lagarde, Maxime"]
[Result "1/2-1/2"]
[TimeControl "1h30+30s/move"]
[WhiteElo "2326"]
[BlackElo "2604"]

1. e4 {[%clk 01:30:58]} {[%emt 00:00:02]} c5 {[%clk 01:29:21]} {[%emt
00:01:34]} 2. Nf3 {[%clk 01:31:25]} {[%emt 00:00:08]} Nc6 {[%clk 01:29:49]}
{[%emt 00:00:03]} 3. d4 {[%clk 01:31:33]} {[%emt 00:00:22]} cxd4 {[%clk
01:30:14]} {[%emt 00:00:04]} 4. Nxd4 {[%clk 01:32:01]} {[%emt 00:00:02]} Nf6
{[%clk 01:30:39]} {[%emt 00:00:04]} 5. Nc3 {[%clk 01:32:28]} {[%emt 00:00:02]}
e5 {[%clk 01:31:06]} {[%emt 00:00:05]} 6. Ndb5 {[%clk 01:32:47]} {[%emt
00:00:10]} d6 {[%clk 01:31:29]} {[%emt 00:00:06]} 7. Bg5 {[%clk 01:29:02]}
{[%emt 00:04:16]} a6 {[%clk 01:31:54]} {[%emt 00:00:06]} 8. Na3 {[%clk
01:29:30]} {[%emt 00:00:02]} b5 {[%clk 01:32:16]} {[%emt 00:00:07]} 9. Bxf6
{[%clk 01:29:56]} {[%emt 00:00:04]} gxf6 {[%clk 01:32:30]} {[%emt 00:00:16]} 10.
Nd5 {[%clk 01:30:22]} {[%emt 00:00:03]} Bg7 {[%clk 01:32:33]} {[%emt 00:00:27]}
11. Bd3 {[%clk 01:29:38]} {[%emt 00:01:14]} Ne7 {[%clk 01:31:16]} {[%emt
00:01:47]} 12. Nxe7 {[%clk 01:25:00]} {[%emt 00:05:08]} Qxe7 {[%clk 01:31:39]}
{[%emt 00:00:08]} 13. c4 {[%clk 01:25:18]} {[%emt 00:00:12]} f5 {[%clk
01:22:49]} {[%emt 00:09:19]} 14. O-O {[%clk 01:23:17]} {[%emt 00:02:31]} O-O
{[%clk 01:19:37]} {[%emt 00:03:42]} 15. Qe2 {[%clk 01:18:08]} {[%emt 00:05:40]}
Rb8 {[%clk 01:02:58]} {[%emt 00:17:09]} 16. f3 {[%clk 01:12:01]} {[%emt
00:06:36]} fxe4 {[%clk 00:50:12]} {[%emt 00:13:16]} 17. fxe4 {[%clk 01:11:02]}
{[%emt 00:01:29]} f5 {[%clk 00:49:13]} {[%emt 00:01:29]} 18. exf5 {[%clk
01:02:55]} {[%emt 00:08:37]} d5 {[%clk 00:49:31]} {[%emt 00:00:12]} 19. cxd5
{[%clk 01:01:29]} {[%emt 00:01:57]} e4 {[%clk 00:49:36]} {[%emt 00:00:24]} 20.
f6 {[%clk 00:53:38]} {[%emt 00:08:21]} Qc5+ {[%clk 00:38:44]} {[%emt 00:11:21]}
21. Kh1 {[%clk 00:53:52]} {[%emt 00:00:17]} exd3 {[%clk 00:38:39]} {[%emt
00:00:34]} 22. fxg7 {[%clk 00:54:05]} {[%emt 00:00:18]} dxe2 {[%clk 00:35:57]}
{[%emt 00:03:12]} 23. gxf8=Q+ {[%clk 00:54:26]} {[%emt 00:00:08]} Qxf8 {[%clk
00:36:23]} {[%emt 00:00:05]} 24. Rxf8+ {[%clk 00:54:35]} {[%emt 00:00:21]} Kxf8
{[%clk 00:36:49]} {[%emt 00:00:04]} 25. Nc2 {[%clk 00:48:07]} {[%emt 00:06:58]}
Bb7 {[%clk 00:33:09]} {[%emt 00:04:10]} 26. Re1 {[%clk 00:41:40]} {[%emt
00:06:56]} Bxd5 {[%clk 00:31:29]} {[%emt 00:02:11]} 27. b3 {[%clk 00:41:46]}
{[%emt 00:00:25]} Be4 {[%clk 00:30:41]} {[%emt 00:01:17]} 28. Nd4 {[%clk
00:41:02]} {[%emt 00:01:14]} Rc8 {[%clk 00:27:42]} {[%emt 00:03:29]} 29. Kg1
{[%clk 00:39:10]} {[%emt 00:02:22]} Bg6 {[%clk 00:27:20]} {[%emt 00:00:53]} 30.
Rxe2 {[%clk 00:35:12]} {[%emt 00:04:29]} Rc1+ {[%clk 00:27:30]} {[%emt
00:00:19]} 31. Kf2 {[%clk 00:35:36]} {[%emt 00:00:06]} Rd1 {[%clk 00:23:59]}
{[%emt 00:04:01]} 32. Nc6 {[%clk 00:30:44]} {[%emt 00:05:23]} Be8 {[%clk
00:18:27]} {[%emt 00:06:02]} 33. Ne5 {[%clk 00:30:31]} {[%emt 00:00:43]} a5
{[%clk 00:17:43]} {[%emt 00:01:14]} 34. Ke3 {[%clk 00:27:12]} {[%emt 00:03:49]}
a4 {[%clk 00:13:36]} {[%emt 00:04:37]} 35. Nd3 {[%clk 00:26:14]} {[%emt
00:01:27]} Bf7 {[%clk 00:11:39]} {[%emt 00:02:27]} 36. Rb2 {[%clk 00:24:37]}
{[%emt 00:02:06]} Ke7 {[%clk 00:09:51]} {[%emt 00:02:18]} 37. Nf2 {[%clk
00:22:40]} {[%emt 00:02:27]} Rc1 {[%clk 00:05:51]} {[%emt 00:04:27]} 38. Kd4
{[%clk 00:20:48]} {[%emt 00:02:25]} Kd6 {[%clk 00:05:33]} {[%emt 00:00:49]} 39.
Ne4+ {[%clk 00:20:41]} {[%emt 00:00:37]} Kc6 {[%clk 00:05:58]} {[%emt
00:00:04]} 40. Rf2 {[%clk 00:19:37]} {[%emt 00:01:33]} Rd1+ {[%clk 00:04:36]}
{[%emt 00:01:52]} 41. Kc3 {[%clk 00:16:44]} {[%emt 00:03:23]} Bg6 {[%clk
00:04:46]} {[%emt 00:00:20]} 42. Rf6+ {[%clk 00:13:59]} {[%emt 00:03:15]} Kc7
{[%clk 00:05:03]} {[%emt 00:00:11]} 43. Nc5 {[%clk 00:11:41]} {[%emt 00:02:50]}
Rc1+ {[%clk 00:05:22]} {[%emt 00:00:11]} 44. Kb4 {[%clk 00:11:55]} {[%emt
00:00:17]} Rc2 {[%clk 00:05:01]} {[%emt 00:00:51]} 45. Ne6+ {[%clk 00:11:39]}
{[%emt 00:00:46]} Kd7 {[%clk 00:05:06]} {[%emt 00:00:23]} 46. Nf4 {[%clk
00:12:02]} {[%emt 00:00:09]} Rxa2 {[%clk 00:04:31]} {[%emt 00:01:06]} 47. Nxg6
{[%clk 00:12:09]} {[%emt 00:00:23]} hxg6 {[%clk 00:02:57]} {[%emt 00:02:04]} 48.
Rxg6 {[%clk 00:10:07]} {[%emt 00:02:31]} Rb2 {[%clk 00:03:15]} {[%emt
00:00:13]} 49. Rg3 {[%clk 00:09:48]} {[%emt 00:00:49]} Rb1 {[%clk 00:03:03]}
{[%emt 00:00:42]} 50. Ka3 {[%clk 00:09:07]} {[%emt 00:01:11]} Ra1+ {[%clk
00:01:22]} {[%emt 00:02:11]} 51. Kb2 {[%clk 00:08:25]} {[%emt 00:01:12]} Rh1
{[%clk 00:01:24]} {[%emt 00:00:28]} 52. h3 {[%clk 00:08:40]} {[%emt 00:00:15]}
axb3 {[%clk 00:01:05]} {[%emt 00:00:49]} 53. Kxb3 {[%clk 00:08:32]} {[%emt
00:00:39]} Kc6 {[%clk 00:01:32]} {[%emt 00:00:02]} 54. Rg4 {[%clk 00:08:20]}
{[%emt 00:00:42]} Kc5 {[%clk 00:01:53]} {[%emt 00:00:09]} 55. h4 {[%clk
00:08:35]} {[%emt 00:00:15]} Rb1+ {[%clk 00:02:11]} {[%emt 00:00:13]} 56. Kc2
{[%clk 00:08:16]} {[%emt 00:00:49]} Rh1 {[%clk 00:02:37]} {[%emt 00:00:04]} 57.
g3 {[%clk 00:08:09]} {[%emt 00:00:37]} b4 {[%clk 00:02:38]} {[%emt 00:00:29]}
58. Rg8 {[%clk 00:05:47]} {[%emt 00:02:52]} Kc4 {[%clk 00:02:48]} {[%emt
00:00:20]} 59. Rc8+ {[%clk 00:05:42]} {[%emt 00:00:35]} Kd4 {[%clk 00:03:12]}
{[%emt 00:00:05]} 60. Kb2 {[%clk 00:05:44]} {[%emt 00:00:30]} Rg1 {[%clk
00:02:38]} {[%emt 00:01:04]} 61. Rg8 {[%clk 00:05:40]} {[%emt 00:00:33]} Rh1
{[%clk 00:03:04]} {[%emt 00:00:04]} 62. Rg5 {[%clk 00:05:24]} {[%emt 00:00:46]}
Kc4 {[%clk 00:03:24]} {[%emt 00:00:10]} 63. Rg4+ {[%clk 00:03:55]} {[%emt
00:01:59]} Kb5 {[%clk 00:03:47]} {[%emt 00:00:08]} 64. Kb3 {[%clk 00:04:13]}
{[%emt 00:00:12]} Rb1+ {[%clk 00:04:12]} {[%emt 00:00:05]} 65. Kc2 {[%clk
00:03:40]} {[%emt 00:01:04]} Rh1 {[%clk 00:04:38]} {[%emt 00:00:03]} 66. Rg7
{[%clk 00:03:27]} {[%emt 00:00:43]} Kc4 {[%clk 00:04:53]} {[%emt 00:00:15]} 67.
Rc7+ {[%clk 00:02:36]} {[%emt 00:01:21]} Kd4 {[%clk 00:05:17]} {[%emt
00:00:06]} 68. Rh7 {[%clk 00:00:53]} {[%emt 00:02:14]} Kc4 {[%clk 00:05:31]}
{[%emt 00:00:17]} 69. g4 {[%clk 00:00:43]} {[%emt 00:00:39]} b3+ {[%clk
00:05:17]} {[%emt 00:00:44]} 70. Kb2 {[%clk 00:01:08]} {[%emt 00:00:06]} Rh2+
{[%clk 00:05:43]} {[%emt 00:00:04]} 71. Kb1 {[%clk 00:01:36]} {[%emt 00:00:02]}
Rh1+ {[%clk 00:06:07]} {[%emt 00:00:06]} 72. Kb2 {[%clk 00:02:04]} {[%emt
00:00:03]} Rh2+ {[%clk 00:06:34]} {[%emt 00:00:03]} 73. Kb1 {[%clk 00:02:32]}
{[%emt 00:00:03]} Rh1+ {[%emt 00:00:04]} 1/2-1/2

[Event "9e Open International de Porticcio"]
[Site "Porticcio, France"]
[Date "2024.06.30"]
[Round "2.2"]
[White "Fedorchuk, Sergey A."]
[Black "Eden, James"]
[Result "1-0"]
[TimeControl "1h30+30s/move"]
[WhiteElo "2546"]
[BlackElo "2334"]

1. e4 {[%clk 01:30:56]} {[%emt 00:00:02]} e5 {[%clk 01:30:44]} {[%emt
00:00:16]} 2. Nf3 {[%clk 01:30:56]} {[%emt 00:00:31]} Nc6 {[%clk 01:31:04]}
{[%emt 00:00:09]} 3. Bc4 {[%clk 01:30:10]} {[%emt 00:01:16]} Nf6 {[%clk
01:31:01]} {[%emt 00:00:33]} 4. d3 {[%clk 01:30:16]} {[%emt 00:00:24]} Bc5
{[%clk 01:30:46]} {[%emt 00:00:45]} 5. O-O {[%clk 01:29:20]} {[%emt 00:01:26]}
O-O {[%clk 01:29:26]} {[%emt 00:01:50]} 6. h3 {[%clk 01:26:12]} {[%emt
00:03:39]} d6 {[%clk 01:27:40]} {[%emt 00:02:15]} 7. c3 {[%clk 01:25:14]}
{[%emt 00:01:29]} a6 {[%clk 01:26:55]} {[%emt 00:01:16]} 8. Bb3 {[%clk
01:22:55]} {[%emt 00:02:49]} Ba7 {[%clk 01:25:45]} {[%emt 00:01:39]} 9. Re1
{[%clk 01:20:23]} {[%emt 00:03:02]} h6 {[%clk 01:22:32]} {[%emt 00:03:43]} 10.
Nbd2 {[%clk 01:18:21]} {[%emt 00:02:32]} Re8 {[%clk 01:20:16]} {[%emt
00:02:46]} 11. Nf1 {[%clk 01:16:17]} {[%emt 00:02:34]} Be6 {[%clk 01:20:22]}
{[%emt 00:00:23]} 12. Ng3 {[%clk 01:16:34]} {[%emt 00:00:14]} d5 {[%clk
01:20:03]} {[%emt 00:00:49]} 13. exd5 {[%clk 01:16:06]} {[%emt 00:00:58]} Bxd5
{[%clk 01:20:07]} {[%emt 00:00:25]} 14. Bc2 {[%clk 01:15:49]} {[%emt 00:00:47]}
Qd6 {[%clk 01:12:34]} {[%emt 00:08:03]} 15. Nh4 {[%clk 01:12:29]} {[%emt
00:03:52]} Rad8 {[%clk 01:08:46]} {[%emt 00:04:18]} 16. Nhf5 {[%clk 01:10:49]}
{[%emt 00:02:09]} Qd7 {[%clk 01:08:41]} {[%emt 00:00:35]} 17. Qd2 {[%clk
00:56:15]} {[%emt 00:15:05]} Bc5 {[%clk 00:57:34]} {[%emt 00:11:36]} 18. Nxg7
{[%clk 00:52:33]} {[%emt 00:04:12]} Kxg7 {[%clk 00:54:08]} {[%emt 00:03:56]} 19.
Qxh6+ {[%clk 00:52:54]} {[%emt 00:00:09]} Kg8 {[%clk 00:54:33]} {[%emt
00:00:04]} 20. Qg5+ {[%clk 00:52:06]} {[%emt 00:01:19]} 1-0